bitfinex-derivatives/quotes_BTCF0:USTF0_20241020
["timestamp","ask_amount","ask_price","bid_price","bid_amount"]
[1729420079888,0.073026,68472.0,68466.0,0.18030608]
[1729420080084,0.073026,68472.0,68467.0,0.19497209]
[1729420080287,0.073026,68472.0,68468.0,0.10727508]
[1729420080492,0.073026,68472.0,68469.0,0.10727501]
[1729420080792,0.073026,68472.0,68470.0,0.10727501]
[1729420080985,0.073026,68472.0,68471.0,0.10727501]
[1729420083391,0.02597158,68473.0,68471.0,0.10727501]
[1729420083700,0.3912,68474.0,68472.0,0.0730806]
[1729420085190,0.05692622,68474.0,68472.0,0.0730806]
[1729420085391,0.41772622,68474.0,68472.0,0.0730806]
[1729420086101,0.05692622,68474.0,68472.0,0.0730806]
[1729420086398,0.41772622,68474.0,68472.0,0.0730806]
[1729420086799,0.05692622,68474.0,68472.0,0.0730806]
[1729420087499,0.41772622,68474.0,68472.0,0.0730806]
[1729420089094,0.05692622,68474.0,68472.0,0.0730806]
[1729420089501,0.41772622,68474.0,68472.0,0.0730806]
[1729420089700,0.41772622,68474.0,68468.0,0.16072701]
[1729420089701,0.41772622,68474.0,68471.0,0.0730806]
[1729420090303,0.05692622,68474.0,68471.0,0.0730806]
[1729420090602,0.41772622,68474.0,68471.0,0.0730806]
[1729420090987,0.05692622,68474.0,68471.0,0.0730806]
[1729420091294,0.3608,68473.0,68471.0,0.0730806]
[1729420094993,0.08060177,68472.0,68468.0,0.07303]
[1729420095191,0.08060177,68471.0,68468.0,0.07303]
[1729420095404,0.08060177,68470.0,68468.0,0.07303]
[1729420095601,0.08060177,68469.0,68468.0,0.07303]
[1729420098801,0.08060233,68469.0,68468.0,0.07303]
[1729420101900,0.49075022,68474.0,68468.0,0.1803796]
[1729420102099,0.49075022,68474.0,68472.0,0.07307786]
[1729420103006,0.12995022,68474.0,68472.0,0.07307786]
[1729420103513,0.49075022,68474.0,68472.0,0.07307786]
[1729420103916,0.12995022,68474.0,68472.0,0.07307786]
[1729420104122,0.49075022,68474.0,68472.0,0.07307786]
[1729420104502,0.12995022,68474.0,68472.0,0.07307786]
[1729420104698,0.49075022,68474.0,68472.0,0.07307786]
[1729420108522,0.12995022,68474.0,68472.0,0.07307786]
[1729420109017,0.3608,68473.0,68472.0,0.07307786]
[1729420109212,0.3608,68473.0,68472.0,0.18041367]
[1729420109815,0.49075022,68474.0,68472.0,0.18041367]
[1729420110111,0.132988,68473.0,68468.0,0.07303]
[1729420110304,0.08060107,68472.0,68468.0,0.07303]
[1729420110512,0.08060107,68471.0,68468.0,0.07303]
[1729420110706,0.08060107,68470.0,68468.0,0.07303]
[1729420110908,0.08060107,68469.0,68468.0,0.07303]
[1729420111414,0.132988,68473.0,68468.0,0.07303]
[1729420111605,0.08060107,68472.0,68468.0,0.07303]
[1729420111809,0.08060107,68471.0,68468.0,0.07303]
[1729420112112,0.08060107,68470.0,68468.0,0.07303]
[1729420112414,0.08060107,68469.0,68468.0,0.07303]
[1729420113114,0.03576814,68469.0,68468.0,0.07303]
[1729420113419,0.13298823,68473.0,68468.0,0.07303]
[1729420113616,0.0806013,68472.0,68468.0,0.07303]
[1729420113919,0.0806013,68471.0,68468.0,0.07303]
[1729420114217,0.0806013,68470.0,68468.0,0.07303]
[1729420114401,0.0806013,68469.0,68468.0,0.07303]
[1729420117121,0.49075022,68474.0,68468.0,0.26808588]
[1729420117312,0.49075022,68474.0,68472.0,0.07307963]
[1729420119324,0.12995022,68474.0,68472.0,0.07307963]
[1729420119709,0.49075022,68474.0,68472.0,0.07307963]
[1729420120321,0.49075022,68474.0,68471.0,0.07307963]
[1729420120508,0.49075022,68474.0,68472.0,0.07307963]
[1729420120716,0.12995022,68474.0,68472.0,0.07307963]
[1729420120917,0.49075022,68474.0,68472.0,0.07307963]
[1729420121820,0.12995022,68474.0,68472.0,0.07307963]
[1729420122008,0.49075022,68474.0,68472.0,0.07307963]
[1729420123124,0.12995022,68474.0,68472.0,0.07307963]
[1729420123527,0.49075022,68474.0,68471.0,0.07307963]
[1729420123829,0.12995022,68474.0,68472.0,0.07307963]
[1729420124126,0.49075022,68474.0,68471.0,0.07307963]
[1729420124813,0.12995022,68474.0,68471.0,0.07307963]
[1729420125116,0.49075022,68474.0,68471.0,0.07307963]
[1729420125321,0.12995022,68474.0,68472.0,0.07307963]
[1729420125522,0.12995022,68474.0,68471.0,0.07307963]
[1729420125722,0.49075022,68474.0,68471.0,0.07307963]
[1729420126616,0.12995022,68474.0,68471.0,0.07307963]
[1729420127120,0.49075022,68474.0,68472.0,0.07307963]
[1729420127512,0.49075022,68474.0,68471.0,0.07307963]
[1729420127713,0.12995022,68474.0,68471.0,0.07307963]
[1729420128123,0.49075022,68474.0,68471.0,0.07307963]
[1729420129025,0.12995022,68474.0,68471.0,0.07307963]
[1729420129226,0.49075022,68474.0,68471.0,0.07307963]
[1729420129815,0.49075022,68474.0,68472.0,0.07307963]
[1729420131226,0.12995022,68474.0,68472.0,0.07307963]
[1729420131529,0.49075022,68474.0,68472.0,0.07307963]
[1729420132029,0.08060117,68473.0,68468.0,0.07303]
[1729420132223,0.08060117,68472.0,68468.0,0.07303]
[1729420132422,0.08060117,68471.0,68468.0,0.07303]
[1729420132623,0.08060117,68470.0,68468.0,0.07303]
[1729420132823,0.08060117,68469.0,68468.0,0.07303]
[1729420138026,0.08060131,68469.0,68468.0,0.07303]
[1729420140042,0.49075022,68474.0,68468.0,0.26809812]
[1729420140235,0.49075022,68474.0,68472.0,0.07308264]
[1729420140628,0.12995022,68474.0,68472.0,0.07308264]
[1729420140824,0.49075022,68474.0,68473.0,0.07308264]
[1729420141630,0.12995022,68474.0,68473.0,0.07308264]
[1729420142029,0.49075022,68474.0,68473.0,0.07308264]
[1729420142233,0.49075022,68474.0,68472.0,0.07308264]
[1729420142437,0.49075022,68474.0,68473.0,0.07308264]
[1729420142834,0.49075022,68474.0,68472.0,0.07308264]
[1729420143031,0.49075022,68474.0,68473.0,0.07308264]
[1729420143231,0.49075022,68474.0,68472.0,0.07308264]
[1729420143829,0.49075022,68474.0,68473.0,0.07308264]
[1729420144026,0.12995022,68474.0,68473.0,0.07308264]
[1729420144230,0.49075022,68474.0,68472.0,0.07308264]
[1729420144834,0.12995022,68474.0,68473.0,0.07308264]
[1729420145337,0.49075022,68474.0,68473.0,0.07308264]
[1729420145936,0.12995022,68474.0,68473.0,0.07308264]
[1729420146436,0.49075022,68474.0,68473.0,0.07308264]
[1729420147042,0.57135145,68474.0,68468.0,0.07303]
[1729420147235,0.13298826,68473.0,68468.0,0.07303]
[1729420147430,0.08060123,68472.0,68463.0,0.073035]
[1729420147635,0.08060123,68471.0,68468.0,0.07303]
[1729420147837,0.08060123,68470.0,68468.0,0.07303]
[1729420148036,0.08060123,68469.0,68468.0,0.07303]
[1729420152736,0.03576821,68469.0,68468.0,0.07303]
[1729420154948,0.433825,68473.0,68468.0,0.18040681]
[1729420155151,0.3608,68473.0,68471.0,0.07308095]
[1729420156342,0.3608,68473.0,68472.0,0.07308095]
[1729420158054,0.41772622,68474.0,68472.0,0.07308095]
[1729420162049,0.41772622,68474.0,68469.0,0.073029]
[1729420162050,0.0806014,68473.0,68469.0,0.073029]
[1729420162255,0.0806014,68472.0,68469.0,0.073029]
[1729420162549,0.0806014,68471.0,68469.0,0.073029]
[1729420162855,0.0806014,68470.0,68469.0,0.073029]
[1729420163244,0.0806014,68470.0,68463.0,0.073035]
[1729420163557,0.0806014,68469.0,68468.0,0.07303]
[1729420163856,0.08060179,68473.0,68470.0,0.073027]
[1729420164059,0.08060179,68472.0,68470.0,0.073027]
[1729420164246,0.08060179,68471.0,68470.0,0.073027]
[1729420165847,0.03576844,68471.0,68470.0,0.073027]
[1729420166049,0.08060175,68473.0,68470.0,0.073027]
[1729420166854,0.08060175,68473.0,68462.0,0.04960406]
[1729420167056,0.08060175,68473.0,68471.0,0.073027]
[1729420167945,0.13298896,68473.0,68471.0,0.073027]
[1729420168251,0.08060175,68472.0,68471.0,0.073027]
[1729420170151,0.41772622,68474.0,68471.0,0.10736365]
[1729420170358,0.41772622,68474.0,68472.0,0.25346882]
[1729420170560,0.41772622,68474.0,68472.0,0.14610517]
[1729420174147,0.41772622,68474.0,68473.0,0.07308017]
[1729420174352,0.41772622,68474.0,68472.0,0.14610517]
[1729420174554,0.41772622,68474.0,68473.0,0.07308017]
[1729420175058,0.41772622,68474.0,68472.0,0.14610517]
[1729420175761,0.41772622,68474.0,68473.0,0.07308017]
[1729420176260,0.41772622,68474.0,68472.0,0.14610517]
[1729420185066,0.13298802,68473.0,68472.0,0.073025]
[1729420185567,0.13298808,68473.0,68472.0,0.073025]
[1729420191075,0.08060114,68473.0,68472.0,0.073025]
[1729420192372,0.41772622,68474.0,68472.0,0.25345287]
[1729420192573,0.41772622,68474.0,68472.0,0.14610517]
[1729420199174,0.41772622,68474.0,68472.0,0.073025]
[1729420199369,0.41772622,68474.0,68472.0,0.14610517]
[1729420200175,0.13299075,68473.0,68472.0,0.073025]
[1729420200476,0.13299026,68473.0,68472.0,0.073025]
[1729420200777,0.13299019,68473.0,68472.0,0.073025]
[1729420201076,0.08060225,68473.0,68472.0,0.073025]
[1729420203283,0.13299019,68473.0,68472.0,0.05157046]
[1729420203478,0.13299057,68473.0,68472.0,0.05157046]
[1729420203675,0.13298847,68473.0,68472.0,0.05157046]
[1729420204889,0.08060053,68473.0,68472.0,0.05157046]
[1729420207283,0.38732622,68474.0,68473.0,0.073025]
[1729420207583,0.38732622,68474.0,68473.0,0.21306318]
[1729420210788,0.3608,68482.0,68473.0,0.2327845]
[1729420210977,0.3608,68482.0,68481.0,0.073016]
[1729420214788,0.38665188,68482.0,68481.0,0.073016]
[1729420218987,0.02585188,68482.0,68481.0,0.073016]
[1729420219193,0.0324,68486.0,68485.0,0.073012]
[1729420222103,0.02589572,68486.0,68485.0,0.073012]
[1729420222290,0.02589572,68486.0,68485.0,0.05098469]
[1729420222291,0.08058526,68486.0,68485.0,0.05098469]
[1729420225495,0.03576112,68486.0,68485.0,0.05098469]
[1729420225802,0.0021909,68488.0,68487.0,0.07301]
[1729420225992,0.08277388,68488.0,68487.0,0.07301]
[1729420230199,0.0021909,68488.0,68487.0,0.07301]
[1729420237306,0.0021909,68488.0,68483.0,0.3608]
[1729420237307,0.03794965,68488.0,68483.0,0.3608]
[1729420237505,0.08057991,68487.0,68482.0,0.0332]
[1729420237706,0.08057991,68486.0,68485.0,0.073012]
[1729420245311,0.0021909,68488.0,68485.0,0.1070115]
[1729420245501,0.0021909,68488.0,68487.0,0.14593629]
[1729420245701,0.0021909,68488.0,68487.0,0.25294779]
[1729420246211,0.0021909,68488.0,68487.0,0.1800215]
[1729420246409,0.0021909,68488.0,68487.0,0.25295276]
[1729420246713,0.0021909,68488.0,68487.0,0.07301]
[1729420252313,0.08277365,68488.0,68487.0,0.14594126]
[1729420252618,0.08277365,68488.0,68487.0,0.07301]
[1729420252816,0.08277365,68488.0,68487.0,0.05149451]
[1729420254818,0.08058275,68488.0,68487.0,0.05149451]
[1729420257017,0.08058367,68488.0,68480.0,0.073017]
[1729420257215,0.08058367,68488.0,68487.0,0.07301]
[1729420260420,0.08058367,68488.0,68477.0,0.09969995]
[1729420260421,0.0308,68489.0,68488.0,0.073009]
[1729420275528,0.0665599,68489.0,68488.0,0.05160286]
[1729420276028,0.11138251,68489.0,68488.0,0.05160286]
[1729420279736,0.11138251,68489.0,68488.0,0.05160286]
[1729420279942,0.11138307,68489.0,68488.0,0.05160286]
[1729420282539,0.0308,68489.0,68488.0,0.1591392]
[1729420289531,0.0308,68489.0,68488.0,0.05160286]
[1729420289730,0.0308,68489.0,68488.0,0.15914756]
[1729420290443,0.11138276,68489.0,68488.0,0.05160286]
[1729420294431,0.11138562,68489.0,68488.0,0.05160286]
[1729420297552,0.0308,68489.0,68488.0,0.15917547]
[1729420298652,0.0308,68489.0,68488.0,0.23219544]
[1729420307349,0.0308,68489.0,68488.0,0.23218754]
[1729420307543,0.0308,68489.0,68488.0,0.12462283]
[1729420309652,0.0308,68489.0,68488.0,0.23215758]
[1729420310557,0.0308,68489.0,68488.0,0.15914187]
[1729420310965,0.0308,68489.0,68488.0,0.23215984]
[1729420312454,0.07562327,68489.0,68488.0,0.05160286]
[1729420312657,0.1113837,68489.0,68488.0,0.05160286]
[1729420314158,0.11138395,68489.0,68488.0,0.05160286]
[1729420320566,0.0308,68489.0,68488.0,0.15914243]
[1729420326073,0.0308,68489.0,68488.0,0.23216437]
[1729420327378,0.0308,68489.0,68488.0,0.23217326]
[1729420327573,0.11138423,68489.0,68488.0,0.05160286]
[1729420332484,0.11138483,68489.0,68488.0,0.03663007]
[1729420335585,0.0308,68489.0,68488.0,0.14431682]
[1729420336086,0.0308,68489.0,68488.0,0.21734304]
[1729420337081,0.0308,68489.0,68488.0,0.21733303]
[1729420338483,0.0308,68489.0,68488.0,0.2173324]
[1729420339392,0.0308,68489.0,68488.0,0.10965566]
[1729420340290,0.0308,68489.0,68488.0,0.21733733]
[1729420340994,0.0308,68489.0,68488.0,0.10965566]
[1729420342593,0.0308,68489.0,68488.0,0.03663007]
[1729420342792,0.11138564,68489.0,68488.0,0.03663007]
[1729420345611,0.47218564,68489.0,68488.0,0.03663007]
[1729420346909,0.11138564,68489.0,68488.0,0.03663007]
[1729420347109,0.47218564,68489.0,68488.0,0.03663007]
[1729420347312,0.11138564,68489.0,68488.0,0.03663007]
[1729420347499,0.47218564,68489.0,68488.0,0.03663007]
[1729420347901,0.11138564,68489.0,68488.0,0.03663007]
[1729420348101,0.47218564,68489.0,68488.0,0.03663007]
[1729420348606,0.11138564,68489.0,68488.0,0.03663007]
[1729420348797,0.47218564,68489.0,68488.0,0.03663007]
[1729420349614,0.3916,68489.0,68488.0,0.14431084]
[1729420349910,0.3916,68489.0,68488.0,0.23194276]
[1729420350310,0.0308,68489.0,68488.0,0.23194276]
[1729420350900,0.3916,68489.0,68488.0,0.23194276]
[1729420351113,0.39979772,68491.0,68490.0,0.073007]
[1729420351305,0.76059772,68491.0,68490.0,0.18068777]
[1729420352205,0.76059772,68491.0,68490.0,0.26831969]
[1729420352412,0.76059772,68491.0,68490.0,0.18068777]
[1729420352813,0.76059772,68491.0,68490.0,0.26831969]
[1729420354606,0.39979772,68491.0,68490.0,0.26831969]
[1729420354807,0.76059772,68491.0,68490.0,0.26831969]
[1729420355120,0.39979772,68491.0,68490.0,0.26831969]
[1729420355308,0.76059772,68491.0,68490.0,0.26831969]
[1729420356404,0.39979772,68491.0,68490.0,0.26831969]
[1729420356605,0.39979772,68491.0,68490.0,0.26807348]
[1729420356606,0.76059772,68491.0,68490.0,0.26807348]
[1729420357721,0.76059772,68491.0,68490.0,0.073007]
[1729420363122,0.39979772,68491.0,68490.0,0.073007]
[1729420363420,0.76059772,68491.0,68490.0,0.073007]
[1729420364718,0.8935584,68491.0,68490.0,0.05167856]
[1729420366512,0.89355818,68491.0,68490.0,0.05167856]
[1729420367723,0.53275818,68491.0,68490.0,0.05167856]
[1729420367916,0.89355818,68491.0,68490.0,0.05167856]
[1729420369530,0.53275818,68491.0,68490.0,0.05167856]
[1729420369820,0.89355818,68491.0,68490.0,0.05167856]
[1729420370417,0.53275818,68491.0,68490.0,0.05167856]
[1729420370615,0.89355818,68491.0,68490.0,0.05167856]
[1729420372725,0.76059772,68491.0,68490.0,0.05167856]
[1729420373329,0.39979772,68491.0,68490.0,0.05167856]
[1729420373518,0.76059772,68491.0,68489.0,0.0730267]
[1729420373709,0.76059772,68491.0,68489.0,0.073007]
[1729420374116,0.76059772,68491.0,68489.0,0.1460337]
[1729420375116,0.39979772,68491.0,68489.0,0.1460337]
[1729420375320,0.3608,68490.0,68489.0,0.1460337]
[1729420375519,0.3608,68490.0,68489.0,0.25365957]
[1729420375822,0.3608,68490.0,68489.0,0.25364306]
[1729420376422,0.3608,68490.0,68489.0,0.25363106]
[1729420376927,0.39979772,68491.0,68489.0,0.25363106]
[1729420377128,0.3608,68490.0,68489.0,0.1460337]
[1729420377322,0.39979772,68491.0,68489.0,0.25363272]
[1729420377627,0.39979772,68491.0,68489.0,0.1460337]
[1729420377829,0.3608,68490.0,68489.0,0.1460337]
[1729420378027,0.3608,68490.0,68489.0,0.25363572]
[1729420379833,0.49376056,68490.0,68489.0,0.073007]
[1729420380929,0.13296056,68490.0,68489.0,0.073007]
[1729420381126,0.44138444,68490.0,68489.0,0.073007]
[1729420381331,0.49376056,68490.0,68489.0,0.073007]
[1729420382034,0.49376142,68490.0,68489.0,0.073007]
[1729420383234,0.13296142,68490.0,68489.0,0.073007]
[1729420383435,0.44138444,68490.0,68489.0,0.073007]
[1729420383628,0.49376142,68490.0,68489.0,0.073007]
[1729420384732,0.13296142,68490.0,68489.0,0.073007]
[1729420384923,0.44138555,68490.0,68489.0,0.073007]
[1729420385130,0.13296253,68490.0,68489.0,0.073007]
[1729420385325,0.44138555,68490.0,68489.0,0.073007]
[1729420385529,0.13296253,68490.0,68489.0,0.073007]
[1729420385725,0.08058555,68490.0,68489.0,0.073007]
[1729420385927,0.44138555,68490.0,68489.0,0.073007]
[1729420386232,0.49376253,68490.0,68489.0,0.073007]
[1729420386835,0.13296253,68490.0,68489.0,0.073007]
[1729420387038,0.44138555,68490.0,68489.0,0.073007]
[1729420387226,0.49376253,68490.0,68489.0,0.073007]
[1729420387627,0.13296253,68490.0,68489.0,0.073007]
[1729420387925,0.3608,68490.0,68489.0,0.26825665]
[1729420388733,0.39979772,68491.0,68489.0,0.26825665]
[1729420388932,0.3608,68490.0,68489.0,0.16063892]
[1729420389136,0.39979772,68491.0,68489.0,0.26825677]
[1729420389326,0.39979772,68491.0,68490.0,0.10761785]
[1729420389522,0.76059772,68491.0,68490.0,0.10761785]
[1729420389722,0.76059772,68491.0,68490.0,0.10761752]
[1729420389723,0.39979772,68491.0,68490.0,0.10761752]
[1729420390135,0.76059772,68491.0,68490.0,0.10761752]
[1729420392137,0.39979772,68491.0,68490.0,0.10761752]
[1729420392532,0.76059772,68491.0,68490.0,0.10761752]
[1729420393727,0.39979772,68491.0,68490.0,0.19524944]
[1729420393927,0.76059772,68491.0,68490.0,0.19524944]
[1729420394539,0.76059772,68491.0,68490.0,0.08763192]
[1729420394735,0.76059772,68491.0,68490.0,0.19524239]
[1729420395041,0.39979772,68491.0,68489.0,0.073007]
[1729420395240,0.3608,68490.0,68489.0,0.073007]
[1729420395438,0.39979772,68491.0,68489.0,0.073007]
[1729420395740,0.3608,68490.0,68489.0,0.073007]
[1729420396732,0.0309,68492.0,68489.0,0.073007]
[1729420396941,0.3608,68490.0,68489.0,0.073007]
[1729420400034,0.0309,68492.0,68489.0,0.073007]
[1729420400637,0.3608,68490.0,68489.0,0.073007]
[1729420401442,0.0309,68492.0,68489.0,0.073007]
[1729420401645,0.3608,68490.0,68489.0,0.073007]
[1729420401843,0.0309,68492.0,68489.0,0.073007]
[1729420402038,0.3608,68490.0,68489.0,0.073007]
[1729420402242,0.0309,68492.0,68489.0,0.073007]
[1729420402543,0.3608,68490.0,68489.0,0.073007]
[1729420402946,0.44138567,68490.0,68489.0,0.073007]
[1729420403743,0.08058567,68490.0,68489.0,0.073007]
[1729420403939,0.3965613,68490.0,68489.0,0.073007]
[1729420404241,0.44138567,68490.0,68489.0,0.073007]
[1729420408151,0.08058567,68490.0,68489.0,0.073007]
[1729420408451,0.44138567,68490.0,68489.0,0.073007]
[1729420409347,0.08058567,68490.0,68489.0,0.073007]
[1729420409544,0.44138567,68490.0,68489.0,0.073007]
[1729420409844,0.0309,68492.0,68489.0,0.14603226]
[1729420410052,0.3608,68490.0,68489.0,0.14603226]
[1729420410248,0.3608,68490.0,68489.0,0.073007]
[1729420410550,0.3608,68490.0,68489.0,0.14603226]
[1729420410948,0.0309,68492.0,68489.0,0.14603226]
[1729420411350,0.3608,68490.0,68489.0,0.14603226]
[1729420411938,0.0309,68492.0,68489.0,0.073007]
[1729420412152,0.3608,68490.0,68489.0,0.073007]
[1729420412349,0.0309,68492.0,68489.0,0.073007]
[1729420412744,0.3608,68490.0,68489.0,0.073007]
[1729420413653,0.3608,68490.0,68489.0,0.14603226]
[1729420414049,0.76063778,68490.0,68489.0,0.2536013]
[1729420414359,0.76063778,68490.0,68489.0,0.253605]
[1729420414653,0.39983778,68490.0,68489.0,0.253605]
[1729420414849,0.76063778,68490.0,68489.0,0.253605]
[1729420415653,0.76063778,68490.0,68489.0,0.14603226]
[1729420416141,0.39983778,68490.0,68489.0,0.14603226]
[1729420416346,0.76063778,68490.0,68489.0,0.14603226]
[1729420416554,0.0309,68492.0,68489.0,0.14603226]
[1729420417159,0.3608,68490.0,68489.0,0.14603226]
[1729420417756,0.0309,68492.0,68489.0,0.14603226]
[1729420417958,0.3608,68490.0,68489.0,0.073007]
[1729420418148,0.44138544,68490.0,68489.0,0.073007]
[1729420418645,0.84122322,68490.0,68489.0,0.073007]
[1729420419055,0.52524746,68490.0,68489.0,0.073007]
[1729420419249,0.84122322,68490.0,68481.0,0.0261871]
[1729420419560,0.08058544,68489.0,68480.0,0.0312]
[1729420419754,0.08058544,68489.0,68485.0,0.073011]
[1729420420169,0.3608,68487.0,68485.0,0.073011]
[1729420420358,0.08058544,68486.0,68485.0,0.073011]
[1729420422568,0.05237697,68489.0,68485.0,0.073011]
[1729420422569,0.3608,68487.0,68485.0,0.073011]
[1729420422870,0.08058544,68486.0,68485.0,0.073011]
[1729420423260,0.05237697,68489.0,68485.0,0.073011]
[1729420423261,0.3608,68487.0,68485.0,0.073011]
[1729420423567,0.08058544,68486.0,68485.0,0.073011]
[1729420425062,0.3608,68487.0,68485.0,0.1805241]
[1729420425268,0.3608,68487.0,68486.0,0.1075131]
[1729420425460,0.43381,68487.0,68486.0,0.1075131]
[1729420427673,0.43381,68487.0,68486.0,0.18053889]
[1729420429169,0.43381,68487.0,68486.0,0.1075131]
[1729420430877,0.3608,68487.0,68486.0,0.1075131]
[1729420433068,0.44138747,68487.0,68485.0,0.073012]
[1729420433272,0.08058747,68486.0,68485.0,0.073012]
[1729420436676,0.08058747,68486.0,68481.0,0.073015]
[1729420436871,0.073013,68484.0,68481.0,0.073015]
[1729420437179,0.16862747,68483.0,68481.0,0.073015]
[1729420437374,0.08058747,68482.0,68481.0,0.073015]
[1729420440084,0.4879011,68483.0,68481.0,0.30894329]
[1729420440383,0.4879011,68483.0,68482.0,0.23592829]
[1729420442086,0.4879011,68483.0,68482.0,0.23589344]
[1729420444784,0.4879011,68483.0,68482.0,0.1076175]
[1729420445179,0.45136272,68483.0,68482.0,0.1076175]
[1729420445488,0.45136272,68483.0,68482.0,0.1952094]
[1729420445677,0.81216272,68483.0,68482.0,0.1952094]
[1729420446086,0.88517672,68483.0,68482.0,0.1076175]
[1729420447981,0.52437672,68483.0,68482.0,0.1076175]
[1729420448186,0.88517672,68483.0,68479.0,0.07298509]
[1729420448683,0.52437672,68483.0,68479.0,0.07298509]
[1729420449282,0.3608,68480.0,68479.0,0.07298509]
[1729420449484,0.3608,68480.0,68478.0,0.14600409]
[1729420449680,0.3608,68480.0,68479.0,0.14600309]
[1729420449876,0.3608,68480.0,68479.0,0.25345366]
[1729420452190,0.52437672,68483.0,68479.0,0.25345366]
[1729420452390,0.52437672,68483.0,68479.0,0.14600309]
[1729420452586,0.3608,68480.0,68479.0,0.14600309]
[1729420453098,0.3608,68480.0,68479.0,0.25348146]
[1729420453391,0.52437672,68483.0,68479.0,0.25348146]
[1729420453593,0.52437672,68483.0,68479.0,0.14600309]
[1729420453782,0.3608,68480.0,68479.0,0.14600309]
[1729420453989,0.3608,68480.0,68479.0,0.25346522]
[1729420454189,0.52437672,68483.0,68479.0,0.25346522]
[1729420454487,0.3608,68480.0,68479.0,0.14600309]
[1729420455192,0.44139495,68480.0,68479.0,0.073018]
[1729420456787,0.44139492,68480.0,68479.0,0.073018]
[1729420460395,0.08059492,68480.0,68479.0,0.073018]
[1729420460698,0.44139492,68480.0,68479.0,0.073018]
[1729420461102,0.08059492,68480.0,68479.0,0.073018]
[1729420461298,0.44139492,68480.0,68479.0,0.073018]
[1729420463093,0.44139492,68480.0,68479.0,0.30867411]
[1729420463094,0.30964467,68480.0,68479.0,0.30867411]
[1729420463397,0.26579732,68480.0,68479.0,0.30867411]
[1729420464293,0.08804,68481.0,68479.0,0.30867411]
[1729420464502,0.08804,68481.0,68480.0,0.23565611]
[1729420466201,0.44884,68481.0,68480.0,0.23565611]
[1729420467200,0.08804,68481.0,68480.0,0.23565611]
[1729420470296,0.16863504,68481.0,68477.0,0.07302]
[1729420470503,0.44139504,68480.0,68477.0,0.07302]
[1729420470803,0.08059504,68479.0,68477.0,0.07302]
[1729420471106,0.08059504,68478.0,68477.0,0.07302]
[1729420476002,0.03576546,68478.0,68477.0,0.07302]
[1729420476215,0.0357654,68478.0,68477.0,0.07302]
[1729420476395,0.1087844,68478.0,68473.0,0.00219087]
[1729420476597,0.0357654,68477.0,68474.0,0.073023]
[1729420477400,0.1087864,68477.0,68474.0,0.073023]
[1729420477710,0.0357654,68476.0,68475.0,0.073022]
[1729420478007,0.1087864,68476.0,68475.0,0.073022]
[1729420478312,0.073021,68476.0,68475.0,0.30746835]
[1729420479410,0.073021,68476.0,68475.0,0.55756254]
[1729420479816,0.073021,68476.0,68475.0,0.40964665]
[1729420480002,0.073021,68476.0,68475.0,0.30746835]
[1729420480202,0.073021,68476.0,68475.0,0.45550085]
[1729420481611,0.073021,68476.0,68475.0,0.57227605]
[1729420483418,0.38753051,68479.0,68475.0,0.45550085]
[1729420483617,0.38753051,68479.0,68478.0,0.10227096]
[1729420483821,0.38753051,68479.0,68478.0,0.48474981]
[1729420484211,0.38753051,68479.0,68478.0,0.38202854]
[1729420484520,0.46054851,68479.0,68478.0,0.48428062]
[1729420485112,0.46054851,68479.0,68475.0,0.073022]
[1729420485113,0.54114413,68479.0,68475.0,0.073022]
[1729420485312,0.08059562,68478.0,68475.0,0.073022]
[1729420487023,0.08059562,68478.0,68476.0,0.073021]
[1729420487518,0.073023,68475.0,68473.0,0.07521487]
[1729420487715,0.03576572,68474.0,68473.0,0.07521487]
[1729420490820,0.08059628,68474.0,68473.0,0.07521487]
[1729420491526,0.03576572,68474.0,68473.0,0.07521487]
[1729420493120,0.02186629,68475.0,68473.0,0.50045773]
[1729420493327,0.38753051,68479.0,68474.0,0.45451566]
[1729420493628,0.38753051,68479.0,68473.0,0.11896607]
[1729420493629,0.46054851,68479.0,68478.0,0.10226606]
[1729420493828,0.46054851,68479.0,68478.0,0.48375772]
[1729420494029,0.46054851,68479.0,68478.0,0.48374607]
[1729420494327,0.46054851,68479.0,68478.0,0.33611449]
[1729420494519,0.46054851,68479.0,68478.0,0.23384843]
[1729420495327,0.46054851,68479.0,68478.0,0.48320761]
[1729420496236,0.46054851,68479.0,68478.0,0.33611449]
[1729420496821,0.46054851,68479.0,68478.0,0.48321672]
[1729420497522,0.46054851,68479.0,68478.0,0.38095066]
[1729420498728,0.46054851,68479.0,68478.0,0.4832192]
[1729420499134,0.46054851,68479.0,68478.0,0.38095066]
[1729420499727,0.46054851,68479.0,68478.0,0.48322234]
[1729420500235,0.46054851,68479.0,68478.0,0.10668454]
[1729420500626,0.46054851,68479.0,68478.0,0.10593331]
[1729420504230,0.46054851,68479.0,68476.0,0.16068186]
[1729420504438,0.46054851,68479.0,68477.0,0.10589882]
[1729420504638,0.46054851,68479.0,68476.0,0.16068186]
[1729420504639,0.46054851,68479.0,68478.0,0.10589882]
[1729420508133,0.49631431,68479.0,68476.0,0.073021]
[1729420508339,0.0357658,68478.0,68476.0,0.073021]
[1729420508534,0.0357658,68477.0,68476.0,0.073021]
[1729420515243,0.46054851,68479.0,68476.0,0.45186601]
[1729420515436,0.46054851,68479.0,68477.0,0.37884501]
[1729420515641,0.47557051,68479.0,68478.0,0.45186401]
[1729420518841,0.38753051,68479.0,68478.0,0.45170322]
[1729420523244,0.41696999,68479.0,68478.0,0.073019]
[1729420523443,0.46935291,68479.0,68478.0,0.073019]
[1729420524355,0.15970833,68479.0,68478.0,0.073019]
[1729420524550,0.10732541,68479.0,68478.0,0.073019]
[1729420527258,0.10732541,68479.0,68473.0,0.00219087]
[1729420527259,0.18034341,68479.0,68473.0,0.07521487]
[1729420527548,0.0805949,68478.0,68475.0,0.073022]
[1729420527755,0.0805949,68478.0,68477.0,0.07302]
[1729420528650,0.08059577,68478.0,68477.0,0.07302]
[1729420530148,0.09974851,68479.0,68477.0,0.17858435]
[1729420530350,0.09974851,68479.0,68478.0,0.10556435]
[1729420537359,0.02673051,68479.0,68478.0,0.17858335]
[1729420537555,0.3608,68480.0,68478.0,0.17858335]
[1729420537760,0.3608,68480.0,68479.0,0.10556435]
[1729420538561,0.3608,68480.0,68479.0,0.10555479]
[1729420539955,0.38681685,68480.0,68479.0,0.10555479]
[1729420541558,0.47485685,68480.0,68479.0,0.17857279]
[1729420544068,0.38681685,68480.0,68479.0,0.17857279]
[1729420544671,0.02601685,68480.0,68479.0,0.17857279]
[1729420544873,0.08804,68481.0,68479.0,0.17857279]
[1729420545182,0.08804,68481.0,68480.0,0.10555479]
[1729420545478,0.08804,68481.0,68479.0,0.073018]
[1729420545479,0.1686328,68481.0,68479.0,0.073018]